[Event "Snabbschacks-SM 2025"]
[Site "Norrköping, Sweden"]
[Date "2025.09.28"]
[Round "6.5"]
[White "Stenman, Christoffer"]
[Black "Carlsson, Ludvig"]
[Result "0-1"]
[TimeControl "25 min + 10 sec/move"]
[BlackTitle "IM"]
[WhiteElo "2004"]
[BlackElo "2389"]

1. e4 {[%clk 00:25:16]} {[%emt 00:00:02]} Nc6 {[%clk 00:24:18]} {[%emt
00:01:04]} 2. Nf3 {[%clk 00:24:41]} {[%emt 00:00:45]} e5 {[%clk 00:24:24]}
{[%emt 00:00:03]} 3. Bc4 {[%clk 00:24:46]} {[%emt 00:00:06]} Nf6 {[%clk
00:24:07]} {[%emt 00:00:26]} 4. d3 {[%clk 00:24:48]} {[%emt 00:00:08]} Bc5
{[%clk 00:23:46]} {[%emt 00:00:31]} 5. c3 {[%clk 00:24:49]} {[%emt 00:00:09]}
a6 {[%clk 00:23:41]} {[%emt 00:00:15]} 6. O-O {[%clk 00:24:08]} {[%emt
00:00:52]} d6 {[%clk 00:23:48]} {[%emt 00:00:03]} 7. Bb3 {[%clk 00:24:02]}
{[%emt 00:00:16]} Ba7 {[%clk 00:23:05]} {[%emt 00:00:53]} 8. Nbd2 {[%clk
00:23:54]} {[%emt 00:00:17]} h6 {[%clk 00:19:40]} {[%emt 00:03:35]} 9. h3
{[%clk 00:23:23]} {[%emt 00:00:41]} g5 {[%clk 00:19:35]} {[%emt 00:00:15]} 10.
Re1 {[%clk 00:21:32]} {[%emt 00:02:01]} g4 {[%clk 00:19:34]} {[%emt 00:00:12]}
11. hxg4 {[%clk 00:21:38]} {[%emt 00:00:03]} Nxg4 {[%clk 00:19:38]} {[%emt
00:00:06]} 12. Re2 {[%clk 00:20:34]} {[%emt 00:01:14]} Rg8 {[%clk 00:19:38]}
{[%emt 00:00:10]} 13. Nf1 {[%clk 00:19:51]} {[%emt 00:00:53]} Qf6 {[%clk
00:19:43]} {[%emt 00:00:05]} 14. d4 {[%clk 00:16:50]} {[%emt 00:03:12]} exd4
{[%clk 00:19:34]} {[%emt 00:00:18]} 15. e5 {[%clk 00:16:00]} {[%emt 00:01:01]}
Ngxe5 {[%clk 00:17:35]} {[%emt 00:02:09]} 16. Bg5 {[%clk 00:09:38]} {[%emt
00:06:32]} Rxg5 {[%clk 00:17:04]} {[%emt 00:00:40]} 17. Nxg5 {[%clk 00:09:37]}
{[%emt 00:00:11]} hxg5 {[%clk 00:16:55]} {[%emt 00:00:19]} 18. cxd4 {[%clk
00:08:23]} {[%emt 00:01:25]} Nxd4 {[%clk 00:17:01]} {[%emt 00:00:04]} 19. Rd2
{[%clk 00:06:17]} {[%emt 00:02:16]} Bg4 {[%clk 00:17:00]} {[%emt 00:00:10]} 20.
Qc1 {[%clk 00:06:05]} {[%emt 00:00:22]} Ne2+ {[%clk 00:16:13]} {[%emt
00:00:58]} 21. Rxe2 {[%clk 00:06:01]} {[%emt 00:00:15]} Bxe2 {[%clk 00:16:20]}
{[%emt 00:00:02]} 22. Ne3 {[%clk 00:05:54]} {[%emt 00:00:17]} Nd3 {[%clk
00:16:27]} {[%emt 00:00:02]} 23. Qxc7 {[%clk 00:05:54]} {[%emt 00:00:11]} Qxf2+
{[%clk 00:16:34]} {[%emt 00:00:03]} 24. Kh1 {[%clk 00:05:59]} {[%emt 00:00:02]}
Qh4+ {[%clk 00:16:41]} {[%emt 00:00:05]} 25. Kg1 {[%clk 00:06:04]} {[%emt
00:00:06]} Bxe3# {[%emt 00:00:02]} 0-1

[ePGN "0.1;DGT LiveChess/2.2.7"]

[Event "Snabbschacks-SM 2025"]
[Site "Norrköping, Sweden"]
[Date "2025.09.28"]
[Round "8.1"]
[White "Muntean, Victor"]
[Black "Livner, Anders"]
[Result "1-0"]
[TimeControl "25 min + 10 sec/move"]
[BlackTitle "FM"]
[WhiteElo "2151"]
[BlackElo "2292"]

1. e4 {[%clk 00:25:18]} {[%emt 00:00:01]} c6 {[%clk 00:25:16]} {[%emt
00:00:04]} 2. d4 {[%clk 00:25:26]} {[%emt 00:00:02]} d5 {[%clk 00:25:24]}
{[%emt 00:00:02]} 3. exd5 {[%clk 00:25:34]} {[%emt 00:00:02]} cxd5 {[%clk
00:25:32]} {[%emt 00:00:03]} 4. Bd3 {[%clk 00:25:42]} {[%emt 00:00:01]} Nf6
{[%clk 00:25:34]} {[%emt 00:00:08]} 5. h3 {[%clk 00:25:49]} {[%emt 00:00:04]}
Nc6 {[%clk 00:25:25]} {[%emt 00:00:18]} 6. c3 {[%clk 00:25:57]} {[%emt
00:00:02]} g6 {[%clk 00:25:29]} {[%emt 00:00:07]} 7. Nf3 {[%clk 00:26:02]}
{[%emt 00:00:04]} Bf5 {[%clk 00:25:29]} {[%emt 00:00:11]} 8. Be2 {[%clk
00:26:10]} {[%emt 00:00:03]} e6 {[%clk 00:24:21]} {[%emt 00:01:18]} 9. O-O
{[%clk 00:25:55]} {[%emt 00:00:24]} Bd6 {[%clk 00:22:47]} {[%emt 00:01:44]} 10.
Re1 {[%clk 00:24:57]} {[%emt 00:01:08]} h6 {[%clk 00:20:50]} {[%emt 00:02:07]}
11. Nbd2 {[%clk 00:24:09]} {[%emt 00:00:58]} g5 {[%clk 00:20:51]} {[%emt
00:00:09]} 12. Ne5 {[%clk 00:21:56]} {[%emt 00:02:24]} Qc7 {[%clk 00:16:13]}
{[%emt 00:04:48]} 13. Bb5 {[%clk 00:17:04]} {[%emt 00:05:02]} Kf8 {[%clk
00:13:57]} {[%emt 00:02:25]} 14. Bxc6 {[%clk 00:14:24]} {[%emt 00:02:51]} bxc6
{[%clk 00:14:03]} {[%emt 00:00:04]} 15. f4 {[%clk 00:13:46]} {[%emt 00:00:47]}
gxf4 {[%clk 00:11:19]} {[%emt 00:02:54]} 16. Ndf3 {[%clk 00:08:59]} {[%emt
00:04:58]} Rg8 {[%clk 00:10:25]} {[%emt 00:01:03]} 17. Kh2 {[%clk 00:08:44]}
{[%emt 00:00:26]} Ne4 {[%clk 00:06:39]} {[%emt 00:03:56]} 18. Bxf4 {[%clk
00:06:29]} {[%emt 00:02:25]} f6 {[%clk 00:06:31]} {[%emt 00:00:17]} 19. g4
{[%clk 00:06:08]} {[%emt 00:00:32]} fxe5 {[%clk 00:06:31]} {[%emt 00:00:11]} 20.
dxe5 {[%clk 00:06:05]} {[%emt 00:00:13]} Bc5 {[%clk 00:05:43]} {[%emt
00:00:58]} 21. gxf5 {[%clk 00:05:39]} {[%emt 00:00:35]} Qg7 {[%clk 00:03:11]}
{[%emt 00:02:42]} 22. Nh4 {[%clk 00:04:42]} {[%emt 00:01:07]} exf5 {[%clk
00:02:59]} {[%emt 00:00:23]} 23. Qh5 {[%emt 00:01:40]} Ng3 {[%clk 00:01:43]} 24.
Qxh6 {[%clk 00:04:04]} {[%emt 00:00:43]} Qxh6 {[%clk 00:00:58]} {[%emt
00:00:55]} 25. Bxh6+ {[%clk 00:04:12]} Kf7 {[%clk 00:00:57]} {[%emt 00:00:11]}
26. Bf4 {[%clk 00:03:49]} {[%emt 00:00:34]} Nh5 {[%clk 00:00:41]} {[%emt
00:00:26]} 27. e6+ {[%clk 00:03:51]} {[%emt 00:00:08]} Ke8 {[%clk 00:00:31]}
{[%emt 00:00:19]} 28. Be5 {[%clk 00:03:23]} {[%emt 00:00:39]} Bf2 {[%clk
00:00:14]} {[%emt 00:00:27]} 29. Nxf5 {[%clk 00:02:58]} {[%emt 00:00:34]} Bxe1
{[%clk 00:00:23]} {[%emt 00:00:01]} 30. Rxe1 {[%clk 00:03:07]} {[%emt
00:00:02]} Rg5 {[%clk 00:00:15]} {[%emt 00:00:18]} 31. Nd4 {[%clk 00:03:08]}
{[%emt 00:00:09]} Rc8 {[%clk 00:00:14]} {[%emt 00:00:11]} 32. h4 {[%clk
00:02:59]} {[%emt 00:00:18]} Rg6 {[%clk 00:00:22]} {[%emt 00:00:02]} 33. Nf5
{[%clk 00:01:30]} {[%emt 00:01:40]} Ra8 {[%clk 00:00:15]} {[%emt 00:00:17]} 34.
e7 {[%clk 00:01:25]} {[%emt 00:00:16]} Kd7 {[%clk 00:00:21]} {[%emt 00:00:03]}
35. Bd4 {[%clk 00:01:12]} {[%emt 00:00:23]} Nf4 {[%clk 00:00:26]} {[%emt
00:00:05]} 36. Ng7 {[%clk 00:00:58]} {[%emt 00:00:24]} Ne6 {[%clk 00:00:22]}
{[%emt 00:00:13]} 37. e8=Q+ {[%clk 00:00:52]} {[%emt 00:00:16]} Rxe8 {[%clk
00:00:32]} {[%emt 00:00:01]} 38. Nxe8 {[%clk 00:01:01]} {[%emt 00:00:02]} Kxe8
{[%clk 00:00:40]} {[%emt 00:00:01]} 39. Bxa7 {[%clk 00:01:03]} {[%emt
00:00:08]} Kd7 {[%clk 00:00:46]} {[%emt 00:00:04]} 40. Be3 {[%clk 00:01:06]}
{[%emt 00:00:07]} c5 {[%clk 00:00:50]} {[%emt 00:00:06]} 41. h5 {[%clk
00:01:10]} {[%emt 00:00:06]} Rg4 {[%clk 00:00:54]} {[%emt 00:00:06]} 42. Kh3
{[%clk 00:01:08]} {[%emt 00:00:12]} Re4 {[%clk 00:01:03]} 43. Bd2 {[%clk
00:00:49]} {[%emt 00:00:28]} Nf4+ {[%clk 00:01:12]} {[%emt 00:00:02]} 44. Kg4
{[%clk 00:00:35]} {[%emt 00:00:24]} Ne2+ {[%clk 00:00:48]} {[%emt 00:00:34]} 45.
Kf3 {[%clk 00:00:38]} {[%emt 00:00:06]} 1-0

[Event "Snabbschacks-SM 2025"]
[Site "Norrköping, Sweden"]
[Date "2025.09.28"]
[Round "9.7"]
[White "Ostling, Hakan"]
[Black "Lilliehook, Victor"]
[Result "1-0"]
[TimeControl "25 min + 10 sec/move"]
[WhiteElo "2117"]
[BlackElo "2136"]

1. f4 {[%clk 00:24:59]} {[%emt 00:00:05]} d5 {[%clk 00:25:11]} {[%emt
00:00:10]} 2. Nf3 {[%emt 00:00:02]} c5 3. g3 {[%clk 00:25:13]} {[%emt
00:00:03]} g6 {[%clk 00:25:28]} {[%emt 00:00:02]} 4. Bg2 {[%clk 00:25:22]} Bg7
{[%clk 00:25:38]} 5. d3 {[%clk 00:25:31]} {[%emt 00:00:02]} Nf6 {[%clk
00:25:15]} {[%emt 00:00:32]} 6. O-O {[%clk 00:25:38]} {[%emt 00:00:03]} O-O
{[%clk 00:25:17]} {[%emt 00:00:08]} 7. Nc3 {[%clk 00:25:45]} {[%emt 00:00:03]}
Bf5 {[%clk 00:24:13]} {[%emt 00:01:14]} 8. Ne5 {[%clk 00:25:07]} {[%emt
00:00:48]} Nbd7 {[%clk 00:16:38]} {[%emt 00:07:46]} 9. e4 {[%clk 00:23:35]}
{[%emt 00:01:41]} Nxe5 {[%clk 00:15:53]} {[%emt 00:00:56]} 10. exf5 {[%clk
00:16:14]} {[%emt 00:07:31]} Nc6 {[%clk 00:15:33]} {[%emt 00:00:30]} 11. fxg6
{[%clk 00:16:22]} {[%emt 00:00:03]} hxg6 {[%clk 00:15:11]} {[%emt 00:00:31]} 12.
f5 {[%clk 00:16:28]} {[%emt 00:00:03]} Qd7 {[%clk 00:13:46]} {[%emt 00:01:35]}
13. fxg6 {[%clk 00:16:25]} {[%emt 00:00:13]} fxg6 {[%clk 00:13:54]} {[%emt
00:00:02]} 14. Ne2 {[%clk 00:16:23]} {[%emt 00:00:12]} e5 {[%clk 00:13:05]}
{[%emt 00:01:00]} 15. c3 {[%clk 00:16:23]} {[%emt 00:00:10]} Rae8 {[%clk
00:11:26]} {[%emt 00:01:48]} 16. Bg5 {[%clk 00:16:27]} {[%emt 00:00:06]} Nh7
{[%clk 00:11:05]} {[%emt 00:00:31]} 17. Bd2 {[%clk 00:16:05]} {[%emt 00:00:31]}
Rxf1+ {[%clk 00:10:19]} {[%emt 00:00:57]} 18. Qxf1 {[%clk 00:15:22]} {[%emt
00:00:52]} Rf8 {[%clk 00:10:24]} {[%emt 00:00:05]} 19. Qe1 {[%clk 00:13:44]}
{[%emt 00:01:48]} b5 {[%clk 00:09:20]} {[%emt 00:01:14]} 20. Kh1 {[%clk
00:12:25]} {[%emt 00:01:30]} c4 {[%clk 00:08:04]} {[%emt 00:01:26]} 21. dxc4
{[%clk 00:11:57]} {[%emt 00:00:37]} bxc4 {[%clk 00:08:11]} {[%emt 00:00:02]} 22.
Rd1 {[%clk 00:11:53]} {[%emt 00:00:14]} Rd8 {[%clk 00:06:43]} {[%emt 00:01:38]}
23. Bc1 {[%clk 00:11:04]} {[%emt 00:00:59]} Qf7 {[%clk 00:05:56]} {[%emt
00:00:57]} 24. Qf1 {[%clk 00:10:37]} {[%emt 00:00:38]} Qe6 {[%clk 00:05:17]}
{[%emt 00:00:48]} 25. Bh3 {[%clk 00:09:23]} {[%emt 00:01:25]} Qd6 {[%clk
00:04:46]} {[%emt 00:00:41]} 26. Qg2 {[%clk 00:08:55]} {[%emt 00:00:38]} Nf6
{[%clk 00:03:10]} {[%emt 00:01:45]} 27. Bg5 {[%clk 00:08:45]} {[%emt 00:00:21]}
d4 {[%clk 00:01:20]} {[%emt 00:02:00]} 28. cxd4 {[%clk 00:08:17]} {[%emt
00:00:38]} exd4 {[%clk 00:01:06]} {[%emt 00:00:24]} 29. Nf4 {[%clk 00:08:18]}
{[%emt 00:00:09]} Re8 {[%clk 00:01:02]} {[%emt 00:00:14]} 30. Bxf6 {[%clk
00:07:48]} {[%emt 00:00:40]} Qxf6 {[%clk 00:00:55]} {[%emt 00:00:17]} 31. Qd5+
{[%clk 00:07:52]} {[%emt 00:00:06]} Kh8 {[%clk 00:00:19]} {[%emt 00:00:46]} 32.
Qxc4 {[%clk 00:07:51]} {[%emt 00:00:11]} 1-0

[Event "Snabbschacks-SM 2025"]
[Site "Norrköping, Sweden"]
[Date "2025.09.28"]
[Round "6.6"]
[White "Dingertz, Erik"]
[Black "Lindh, Fredrik"]
[Result "0-1"]
[TimeControl "25 min + 10 sec/move"]
[BlackTitle "FM"]
[WhiteElo "2112"]
[BlackElo "2249"]

1. d4 {[%clk 00:25:17]} {[%emt 00:00:02]} d5 {[%clk 00:25:19]} {[%emt
00:00:03]} 2. c4 {[%clk 00:25:25]} c6 {[%clk 00:25:28]} {[%emt 00:00:01]} 3.
Nf3 {[%clk 00:25:34]} {[%emt 00:00:02]} Nf6 {[%clk 00:25:37]} {[%emt 00:00:01]}
4. g3 {[%clk 00:25:42]} {[%emt 00:00:02]} Bf5 {[%clk 00:25:41]} {[%emt
00:00:06]} 5. Bg2 {[%clk 00:25:47]} {[%emt 00:00:04]} e6 {[%clk 00:25:48]}
{[%emt 00:00:03]} 6. O-O {[%clk 00:25:54]} {[%emt 00:00:03]} h6 {[%clk
00:25:46]} {[%emt 00:00:12]} 7. Qb3 {[%clk 00:26:02]} {[%emt 00:00:02]} Qb6
{[%clk 00:25:27]} {[%emt 00:00:30]} 8. Nc3 {[%clk 00:25:32]} {[%emt 00:00:39]}
Nbd7 {[%clk 00:24:36]} {[%emt 00:01:01]} 9. c5 {[%clk 00:22:33]} {[%emt
00:03:09]} Qxb3 {[%clk 00:19:08]} {[%emt 00:05:38]} 10. axb3 {[%clk 00:22:42]}
{[%emt 00:00:01]} e5 {[%clk 00:19:17]} {[%emt 00:00:02]} 11. Nxe5 {[%clk
00:21:14]} {[%emt 00:01:37]} Nxe5 {[%clk 00:19:17]} {[%emt 00:00:10]} 12. dxe5
{[%clk 00:21:23]} {[%emt 00:00:01]} Nd7 {[%clk 00:19:18]} {[%emt 00:00:09]} 13.
e4 {[%clk 00:21:32]} {[%emt 00:00:01]} dxe4 {[%clk 00:19:09]} {[%emt 00:00:18]}
14. Nxe4 {[%clk 00:21:32]} {[%emt 00:00:10]} Bxe4 {[%clk 00:18:11]} {[%emt
00:01:08]} 15. Bxe4 {[%clk 00:21:40]} {[%emt 00:00:02]} Bxc5 {[%clk 00:18:14]}
{[%emt 00:00:07]} 16. Rd1 {[%clk 00:12:50]} {[%emt 00:09:00]} O-O-O {[%clk
00:12:59]} {[%emt 00:05:25]} 17. Bf5 {[%clk 00:12:44]} {[%emt 00:00:17]} Rhe8
{[%clk 00:12:54]} {[%emt 00:00:15]} 18. b4 {[%clk 00:10:34]} {[%emt 00:02:19]}
Bb6 {[%clk 00:12:36]} {[%emt 00:00:27]} 19. Re1 {[%clk 00:07:25]} {[%emt
00:03:20]} Kb8 {[%clk 00:05:12]} {[%emt 00:07:34]} 20. Bf4 {[%clk 00:06:30]}
{[%emt 00:01:04]} Bc7 {[%clk 00:05:21]} {[%emt 00:00:02]} 21. Rad1 {[%clk
00:06:09]} {[%emt 00:00:30]} Nf8 {[%clk 00:05:29]} {[%emt 00:00:02]} 22. h4
{[%clk 00:02:43]} {[%emt 00:03:36]} Ne6 {[%clk 00:05:28]} {[%emt 00:00:11]} 23.
Bg4 {[%clk 00:01:05]} {[%emt 00:01:47]} Rxd1 {[%clk 00:01:51]} {[%emt
00:03:49]} 24. Rxd1 {[%clk 00:00:28]} {[%emt 00:00:45]} Nxf4 {[%clk 00:01:49]}
{[%emt 00:00:13]} 25. gxf4 {[%clk 00:00:36]} {[%emt 00:00:02]} Rd8 {[%clk
00:01:58]} 26. h5 {[%clk 00:00:11]} {[%emt 00:00:35]} Rxd1+ 27. Bxd1 {[%clk
00:00:21]} Kc8 {[%clk 00:00:49]} {[%emt 00:01:12]} 28. Kg2 {[%clk 00:00:22]}
{[%emt 00:00:08]} f6 {[%clk 00:00:42]} {[%emt 00:00:17]} 29. exf6 {[%clk
00:00:14]} {[%emt 00:00:18]} gxf6 {[%clk 00:00:50]} {[%emt 00:00:01]} 30. Kf3
{[%clk 00:00:24]} Kd7 {[%clk 00:00:48]} {[%emt 00:00:13]} 31. Ke4 {[%clk
00:00:32]} {[%emt 00:00:02]} Bd6 {[%clk 00:00:31]} {[%emt 00:00:27]} 32. Kf5
{[%clk 00:00:37]} {[%emt 00:00:05]} Ke7 {[%clk 00:00:38]} {[%emt 00:00:04]} 33.
Bb3 {[%clk 00:00:25]} {[%emt 00:00:21]} b5 {[%clk 00:00:24]} {[%emt 00:00:24]}
34. Ba2 {[%clk 00:00:26]} {[%emt 00:00:08]} Bxb4 {[%clk 00:00:18]} {[%emt
00:00:17]} 35. Kg6 {[%clk 00:00:35]} {[%emt 00:00:01]} Bd2 {[%clk 00:00:23]}
{[%emt 00:00:02]} 36. Kxh6 {[%clk 00:00:43]} {[%emt 00:00:04]} Bxf4+ {[%clk
00:00:31]} {[%emt 00:00:02]} 37. Kg7 {[%clk 00:00:52]} f5 {[%clk 00:00:20]}
{[%emt 00:00:22]} 38. b3 {[%clk 00:00:23]} {[%emt 00:00:38]} Be5 {[%clk
00:00:28]} {[%emt 00:00:02]} 39. Kg8 {[%clk 00:00:29]} {[%emt 00:00:05]} Kd6
{[%clk 00:00:19]} {[%emt 00:00:18]} 40. h6 {[%clk 00:00:37]} {[%emt 00:00:02]}
Kc5 {[%clk 00:00:28]} {[%emt 00:00:01]} 41. h7 {[%clk 00:00:20]} {[%emt
00:00:26]} Kb4 {[%clk 00:00:37]} {[%emt 00:00:01]} 42. Bb1 {[%clk 00:00:29]}
{[%emt 00:00:02]} f4 {[%clk 00:00:41]} {[%emt 00:00:05]} 43. Kf7 {[%clk
00:00:20]} {[%emt 00:00:19]} Kc3 {[%clk 00:00:42]} {[%emt 00:00:10]} 44. Ke6
{[%clk 00:00:27]} {[%emt 00:00:03]} Kd4 {[%clk 00:00:33]} {[%emt 00:00:19]} 45.
f3 {[%clk 00:00:17]} {[%emt 00:00:19]} c5 {[%clk 00:00:36]} {[%emt 00:00:07]}
46. Bd3 {[%clk 00:00:21]} {[%emt 00:00:05]} a6 {[%clk 00:00:37]} {[%emt
00:00:09]} 47. Be2 {[%clk 00:00:11]} {[%emt 00:00:20]} Bh8 {[%clk 00:00:40]}
{[%emt 00:00:08]} 48. Kd6 {[%clk 00:00:14]} {[%emt 00:00:07]} c4 {[%clk
00:00:46]} {[%emt 00:00:04]} 49. bxc4 {[%clk 00:00:21]} {[%emt 00:00:03]} bxc4
{[%clk 00:00:55]} 50. Kc6 {[%clk 00:00:27]} c3 {[%clk 00:01:01]} {[%emt
00:00:07]} 51. Bd1 {[%clk 00:00:16]} {[%emt 00:00:21]} Kd3 {[%clk 00:01:02]}
{[%emt 00:00:09]} 52. Kd5 {[%clk 00:00:12]} {[%emt 00:00:14]} c2 {[%clk
00:00:49]} {[%emt 00:00:23]} 53. Bxc2+ {[%clk 00:00:21]} {[%emt 00:00:01]} Kxc2
{[%clk 00:00:57]} {[%emt 00:00:01]} 54. Ke4 {[%clk 00:00:30]} a5 {[%clk
00:01:07]} {[%emt 00:00:01]} 55. Kxf4 {[%clk 00:00:39]} {[%emt 00:00:01]} a4
{[%clk 00:01:16]} 56. Kf5 {[%clk 00:00:45]} {[%emt 00:00:05]} a3 {[%clk
00:01:25]} {[%emt 00:00:01]} 57. Kg6 {[%clk 00:00:47]} {[%emt 00:00:07]} a2
{[%clk 00:01:33]} {[%emt 00:00:02]} 58. Kf7 {[%clk 00:00:56]} a1=Q {[%clk
00:01:40]} {[%emt 00:00:04]} 59. Kg8 {[%clk 00:01:04]} Qg7# {[%clk 00:01:48]}
{[%emt 00:00:02]} 0-1